fUSD/lending_fUSD_20251119
["ID","MTS","AMOUNT","RATE_DAILY","PERIOD"]
[394437951,1763572244659,-151.0,0.00042161,60]
[394437952,1763572244673,-151.0,0.00042161,90]
[394437953,1763572244682,-153.221635,0.00042161,120]
[394437954,1763572244691,-151.0,0.00042161,15]
[394437955,1763572244701,-151.0,0.00042161,120]
[394437956,1763572244711,-151.0,0.00042161,120]
[394437957,1763572244721,-151.0,0.00042161,120]
[394437958,1763572244737,-151.0,0.00042161,120]
[394437959,1763572244747,-151.0,0.00042161,120]
[394437960,1763572244756,-151.0,0.00042161,120]
[394437961,1763572244765,-151.0,0.00042161,120]
[394437962,1763572244776,-151.0,0.00042161,120]
[394437963,1763572244785,-151.0,0.00042161,120]
[394437964,1763572244795,-151.0,0.00042161,120]
[394437965,1763572244804,-151.0,0.00042161,120]
[394437967,1763572244814,-151.0,0.00042161,120]
[394437968,1763572244823,-153.793445,0.00042161,120]
[394437969,1763572244833,-152.741496,0.00042161,120]
[394437970,1763572244845,-151.0,0.00042161,120]
[394437971,1763572244856,-151.0,0.00042161,120]
[394437972,1763572244865,-151.0,0.00042161,120]
[394437973,1763572244875,-247.262232,0.00042161,120]
[394437974,1763572244884,-266.442509,0.00042161,120]
[394437975,1763572244894,-501.070849,0.00042161,120]
[394437976,1763572244903,-501.070849,0.00042161,120]
[394437977,1763572244913,-151.0,0.00042161,120]
[394437978,1763572244922,-501.070849,0.00042161,120]
[394437979,1763572244933,-151.0,0.00042161,120]
[394437980,1763572244942,-151.0,0.00042161,120]
[394437981,1763572244951,-501.070849,0.00042161,120]
[394437982,1763572244960,-241.408192,0.00042161,30]
[394437983,1763572244970,-151.0,0.00042161,120]
[394437984,1763572244979,-151.0,0.00042161,120]
[394437985,1763572244988,-151.0,0.00042161,120]
[394437986,1763572244998,-151.0,0.00042161,120]
[394437987,1763572245007,-151.964242,0.00042161,120]
[394437988,1763572245016,-151.0,0.00042161,28]
[394437989,1763572245028,-151.0,0.00042161,28]
[394437990,1763572245038,-208.075796,0.00042161,28]
[394437991,1763572245048,-151.47555,0.00042161,120]
[394437992,1763572245058,-151.0,0.00042161,120]
[394437993,1763572245067,-151.0,0.00042161,120]
[394437994,1763572245076,-151.0,0.00042161,120]
[394437995,1763572245085,-151.0,0.00042161,120]
[394437996,1763572245094,-151.0,0.00042161,120]
[394437997,1763572245104,-151.0,0.00042161,120]
[394437998,1763572245113,-151.0,0.00042161,120]
[394437999,1763572245122,-151.0,0.00042161,120]
[394438000,1763572245132,-151.0,0.00042161,120]
[394438001,1763572245142,-176.014124,0.00042161,120]
[394438002,1763572245151,-151.0,0.00042161,120]
[394438003,1763572245161,-151.0,0.00042161,120]
[394438004,1763572245170,-260.083173,0.00042161,120]
[394438005,1763572245179,-416.44,0.00042161,30]
[394438006,1763572245189,-1392428.37216695,0.00042161,120]
[394438008,1763572245479,-1437.76353558,0.00042161,120]
[394438010,1763572245494,-51807.58838252,0.00042161,120]
[394438012,1763572245509,-215.90309751,0.00040476,2]
[394438013,1763572245518,-685.09690249,0.00042161,120]
[394438014,1763572245606,-561.0,0.00040126,2]
[394438015,1763572245615,-215.90309751,0.00040594,2]
[394438016,1763572245625,-151.0,0.00042161,120]
[394438017,1763572245634,-1936.35561169,0.00042161,120]
[394438019,1763572245646,-2873.39407235,0.00042161,120]
[394438020,1763572245658,-1019.4452,0.00042161,120]
[394438021,1763572245668,-435.74628199,0.00042161,120]
[394438022,1763572245679,-460.0,0.00042161,120]
[394438023,1763572245690,-98094.74269296,0.00042161,120]
[394438024,1763572245704,-51439.46156703,0.00042161,120]
[394438025,1763572245726,-649.72,0.00038266,3]
[394438026,1763572245736,-1300.42827165,0.00042161,120]
[394438027,1763572245920,-151.0,0.00041268,2]
[394438028,1763572245931,-214.12976889,0.00041369,2]
[394438029,1763572245940,-53.37967511,0.00042161,120]
[394438030,1763572245955,-97.62032489,0.00042161,120]
[394438031,1763572245964,-181.535426,0.00042161,120]
[394438032,1763572245974,-798.34924911,0.00042161,120]
[394438033,1763572245984,-263.49176004,0.00042161,120]
[394438034,1763572245996,-5145.0,0.00042161,120]
[394438035,1763572246046,-31468.49648309,0.00042161,120]
[394438036,1763572246058,-31887.80977846,0.00042161,120]
[394438037,1763572246067,-17173.09964404,0.00042161,120]
[394438038,1763572246078,-13827.86437925,0.00042161,120]
[394438039,1763572246088,-692.99999799,0.00042161,120]
[394438040,1763572246099,-9520.62675755,0.00042161,120]
[394438050,1763572691894,664.23,0.00042195,120]
[394438051,1763572692154,664.23,0.00042195,120]
[394438052,1763572692772,664.23,0.00042195,120]
[394438053,1763572693144,664.23,0.00042195,120]
[394438054,1763572693293,664.23,0.00042195,120]
[394438055,1763572693530,664.23,0.00042195,120]
[394438056,1763572693921,664.23,0.00042195,120]
[394438057,1763572694149,664.23,0.00042195,120]
[394438058,1763572694380,664.23,0.00042195,120]
[394438059,1763572694729,664.23,0.00042195,120]
[394438060,1763572694994,664.23,0.00042195,120]
[394438061,1763572695293,664.23,0.00042195,120]
[394438062,1763572695546,664.23,0.00042195,120]
[394438063,1763572695970,664.23,0.00042195,120]
[394438064,1763572696220,664.23,0.00042195,120]
[394438065,1763572696446,664.23,0.00042195,120]
[394438066,1763572696693,664.23,0.00042195,120]
[394438067,1763572696938,664.23,0.00042195,120]
[394438068,1763572697187,664.23,0.00042195,120]
[394438069,1763572697450,664.23,0.00042195,120]
[394438070,1763572697844,664.23,0.00042195,120]
[394438071,1763572697939,664.23,0.00042195,120]
[394438072,1763572698216,664.23,0.00042195,120]
[394438073,1763572698467,664.44476088,0.00042195,120]
[394438076,1763572858699,500.0,0.00042192,120]
[394438077,1763572858957,519.26362633,0.00042192,120]
[394438094,1763573184503,283.9554688,0.000167,2]
[394438100,1763573197514,479.42350612,0.000275,2]
[394438106,1763573272197,694.85567912,0.00022,4]
[394438107,1763573273910,39359.28577321,0.00017,2]
[394438111,1763573344497,772.61052027,0.00017,2]
[394438146,1763573421314,5000.0,0.00042193,30]
[394438147,1763573428659,5000.0,0.00042193,30]
[394438148,1763573431660,5000.0,0.00042193,30]
[394438184,1763573431984,-284.80850437,0.00031968,2]
[394438186,1763573431993,-7000.0,0.00032,7]
[394438188,1763573432003,-250.0,0.0003287,2]
[394438190,1763573432012,-151.0,0.00032877,90]
[394438192,1763573432021,-1200.0,0.00032999,3]
[394438194,1763573432030,-400.0,0.00032999,2]
[394438196,1763573432039,-7000.0,0.00033,7]
[394438198,1763573432050,-6000.0,0.00034,7]
[394438200,1763573432059,-3904.25,0.00034339,2]
[394438202,1763573432068,-7000.0,0.00035,7]
[394438204,1763573432078,-304.17315594,0.000352,2]
[394438206,1763573432086,-560.0,0.00035456,2]
[394438208,1763573432096,-908.951781,0.00036,5]
[394438210,1763573432106,-195.0,0.00036154,120]
[394438212,1763573432116,-300.0,0.00036154,119]
[394438214,1763573432125,-250.0,0.00036154,2]
[394438216,1763573432135,-152.0,0.00036422,3]
[394438218,1763573432144,-999.0,0.00036839,3]
[394438220,1763573432154,-10012.79914968,0.00037,5]
[394438222,1763573432163,-2751.0,0.00037127,120]
[394438224,1763573432172,-5529.61,0.00037194,2]
[394438226,1763573432181,-500.0,0.00037194,30]
[394438227,1763573432191,-500.0,0.00037194,30]
[394438228,1763573432200,-500.0,0.00037194,30]
[394438230,1763573432210,-1000.0,0.00037194,30]
[394438232,1763573432222,-502.25242591,0.00037194,30]
[394438234,1763573432232,-500.0,0.00037194,30]
[394438236,1763573432242,-500.0,0.00037194,30]
[394438238,1763573432251,-500.0,0.000372,5]
[394438240,1763573432262,-200.0,0.00037203,2]
[394438242,1763573432274,-2642.73,0.00037203,2]
[394438244,1763573432284,-300.0,0.000378,13]
[394438246,1763573432294,-700.0,0.000379,13]
[394438248,1763573432303,-3091.9,0.000379,2]
[394438250,1763573432312,-984.64785494,0.00037945,2]
[394438252,1763573432322,-150.0,0.00037948,7]
[394438253,1763573432331,-150.0,0.00037948,7]
[394438254,1763573432341,-150.0,0.00037948,7]
[394438255,1763573432350,-150.0,0.00037948,7]
[394438256,1763573432360,-150.0,0.00037948,7]
[394438257,1763573432369,-500.0,0.00037973,5]
[394438258,1763573432378,-500.0,0.00037973,5]
[394438259,1763573432388,-500.0,0.00037973,2]
[394438260,1763573432398,-500.0,0.00037973,5]
[394438261,1763573432409,-4609.95151798,0.00038,120]
[394438262,1763573432421,-376.36,0.00038,120]
[394438263,1763573432435,-297.82128808,0.00038,120]
[394438264,1763573432447,-1779.75763711,0.00038,120]
[394438265,1763573432458,-1737.22548478,0.00038,120]
[394438266,1763573432471,-1352.82,0.00038,120]
[394438267,1763573432483,-517.82814468,0.00038,120]
[394438268,1763573432494,-328.23592737,0.00038,120]
[394438269,1763573432505,-85283.56794763,0.00038,2]
[394438270,1763573432514,-312.73175469,0.00038045,2]
[394438271,1763573432524,-168.23927044,0.00038072,30]
[394438272,1763573432533,-10673.76186982,0.00038076,2]
[394438273,1763573432543,-650.74094136,0.00038076,2]
[394438274,1763573432553,-272.0,0.00038095,2]
[394438275,1763573432563,-5328.3868,0.00038166,2]
[394438276,1763573432572,-500.0,0.00038173,5]
[394438277,1763573432581,-443.81982111,0.00038173,5]
[394438278,1763573432590,-1023.89258801,0.00038174,30]
[394438279,1763573432599,-21391.10627957,0.00038175,2]
[394438280,1763573432611,-276915.87801808,0.00038175,2]
[394438281,1763573432622,-271.037225,0.00038175,2]
[394438282,1763573432633,-484.112775,0.00038175,2]
[394438283,1763573435277,5000.0,0.00042193,30]
[394438296,1763573437843,-405620.03446022,0.00038175,2]
[394438297,1763573437854,-55317.83124213,0.00038175,2]
[394438298,1763573437863,-1000.0,0.00038176,2]
[394438299,1763573437872,-171.38085205,0.000382,11]
[394438300,1763573437881,-552.13627352,0.000382,15]
[394438301,1763573437891,-151.0,0.00038253,2]
[394438302,1763573437903,-151.0,0.00038253,2]
[394438303,1763573437913,-151.0,0.00038253,2]
[394438304,1763573437922,-151.0,0.00038253,2]
[394438305,1763573437931,-151.0,0.00038253,2]
[394438306,1763573437940,-151.0,0.00038253,2]
[394438307,1763573437949,-151.0,0.00038253,2]
[394438308,1763573437959,-151.0,0.00038253,2]
[394438309,1763573437968,-229.89398899,0.00038253,2]
[394438310,1763573437978,-500.0,0.00038253,2]
[394438311,1763573437987,-500.0,0.00038253,2]
[394438312,1763573437996,-150.0,0.00038253,2]
[394438313,1763573438005,-150.46,0.00038256,2]
[394438314,1763573438014,-474.41194182,0.00038256,2]
[394438315,1763573438023,-500.0,0.00038265,120]
[394438316,1763573438033,-500.0,0.00038265,120]
[394438317,1763573438043,-500.0,0.00038265,7]
[394438318,1763573438052,-500.0,0.00038265,120]
[394438319,1763573438061,-403.11,0.00038265,51]
[394438320,1763573438071,-151.962,0.00038265,51]
[394438321,1763573438080,-359.65236462,0.00038265,30]
[394438322,1763573438090,-500.0,0.00038265,120]
[394438323,1763573438100,-500.0,0.00038265,2]
[394438324,1763573438113,-30964.4182175,0.00038266,4]
[394438325,1763573438125,-26714.51345088,0.00038266,4]
[394438328,1763573438142,-158930.42562962,0.00038266,4]
[394438330,1763573438151,-226831.132224,0.00038266,4]
[394438332,1763573438160,-500.0,0.00038272,2]
[394438334,1763573438169,-500.0,0.00038273,5]
[394438336,1763573438179,-325.05031776,0.00038273,5]
[394438338,1763573438189,-200.0,0.00038273,5]
[394438340,1763573438198,-500.0,0.00038273,5]
[394438342,1763573438207,-150.0,0.00038273,5]
[394438344,1763573438220,-150.0,0.00038273,5]
[394438346,1763573438229,-150.0,0.00038273,5]
[394438348,1763573438240,-150.0,0.00038273,5]
[394438350,1763573438250,-150.21338972,0.00038273,5]
[394438352,1763573438261,-150.0,0.00038273,5]
[394438354,1763573438272,-151.12903698,0.00038273,5]
[394438356,1763573438282,-254.43738726,0.00038273,5]
[394438358,1763573438291,-150.0,0.00038273,5]
[394438360,1763573438302,-150.0,0.00038273,5]
[394438362,1763573438314,-150.0,0.00038273,5]
[394438364,1763573438324,-150.0,0.00038273,5]
[394438366,1763573438334,-150.57124475,0.00038273,5]
[394438368,1763573438343,-150.0,0.00038273,5]
[394438370,1763573438353,-150.0,0.00038273,5]
[394438372,1763573438362,-150.0,0.00038273,5]
[394438374,1763573438372,-500.0,0.00038273,5]
[394438376,1763573438382,-150.0,0.00038273,2]
[394438378,1763573438393,-500.0,0.00038273,5]
[394438380,1763573438403,-150.0,0.00038273,2]
[394438382,1763573438414,-500.0,0.00038273,5]
[394438384,1763573438423,-500.0,0.00038273,5]
[394438386,1763573438433,-984.6478549,0.00038274,2]
[394438388,1763573438443,-379.37,0.00038275,120]
[394438390,1763573438452,-500.0,0.00038275,7]
[394438392,1763573438462,-500.0,0.00038275,7]
[394438394,1763573438474,-500.0,0.00038275,7]
[394438396,1763573438484,-6447.40013926,0.00038275,20]
[394438398,1763573438493,-204.39555307,0.00038275,15]
[394438400,1763573438503,-150.95907732,0.00038275,15]
[394438403,1763573438517,-150.0,0.00038275,15]
[394438404,1763573438526,-150.0,0.00038275,15]
[394438406,1763573438536,-150.0,0.00038275,15]
[394438409,1763573438547,-150.0,0.00038275,15]
[394438411,1763573438557,-150.0,0.00038275,15]
[394438413,1763573438567,-500.0,0.00038275,15]
[394438414,1763573438577,-150.0,0.00038275,15]
[394438416,1763573438587,-150.0,0.00038275,15]
[394438418,1763573438596,-150.0,0.00038275,15]
[394438420,1763573438605,-150.0,0.00038275,15]
[394438422,1763573438615,-150.0,0.00038275,15]
[394438424,1763573438626,-201.96610444,0.00038275,15]
[394438426,1763573438636,-500.0,0.00038275,15]
[394438429,1763573438647,-500.0,0.00038275,2]
[394438430,1763573438657,-500.0,0.00038275,15]
[394438432,1763573438667,-152.66715242,0.00038275,15]
[394438435,1763573438676,-500.0,0.00038275,2]
[394438436,1763573438687,-500.0,0.00038275,120]
[394438438,1763573438696,-500.0,0.00038275,2]
[394438440,1763573438706,-500.0,0.00038275,2]
[394438443,1763573438718,-500.0,0.00038275,2]
[394438445,1763573438727,-500.0,0.00038275,2]
[394438447,1763573438738,-601.70861865,0.00038275,2]
[394438449,1763573438749,-500.0,0.0003828,2]
[394438451,1763573438759,-500.0,0.0003828,2]
[394438453,1763573438768,-12601.729568,0.00038292,4]
[394438455,1763573438780,-1099.37,0.000383,14]
[394438457,1763573438790,-151.01323319,0.000383,5]
[394438459,1763573438801,-150.0,0.000383,5]
[394438461,1763573438810,-150.0,0.000383,5]
[394438463,1763573438821,-150.0,0.000383,5]
[394438465,1763573438831,-150.0,0.000383,5]
[394438467,1763573438841,-151.59078847,0.000383,5]
[394438469,1763573438851,-150.0,0.000383,5]
[394438471,1763573438860,-150.0,0.000383,5]
[394438473,1763573438870,-500.0,0.000383,5]
[394438475,1763573438880,-500.0,0.000383,5]
[394438477,1763573438889,-500.0,0.000383,5]
[394438479,1763573438899,-500.0,0.000383,5]
[394438481,1763573438908,-150.0,0.00038302,15]
[394438482,1763573438917,-150.0,0.00038302,15]
[394438483,1763573438926,-150.0,0.00038302,15]
[394438484,1763573438935,-150.0,0.00038302,15]
[394438485,1763573438944,-150.0,0.00038302,15]
[394438486,1763573438953,-500.0,0.00038302,15]
[394438487,1763573438962,-217.47763613,0.00038302,15]
[394438488,1763573438972,-150.0,0.00038302,15]
[394438489,1763573438981,-150.0,0.00038302,15]
[394438490,1763573438990,-150.0,0.00038302,15]
[394438491,1763573439000,-150.0,0.00038302,15]
[394438493,1763573439009,-500.0,0.00038302,15]
[394438495,1763573439019,-500.0,0.00038302,2]
[394438497,1763573439030,-500.0,0.00038302,15]
[394438499,1763573439039,-500.0,0.00038302,2]
[394438501,1763573439048,-500.0,0.00038302,120]
[394438503,1763573439057,-500.0,0.00038308,2]
[394438505,1763573439066,-150.0,0.00038308,2]
[394438507,1763573439075,-158.86102011,0.00038328,5]
[394438509,1763573439085,-202.03729613,0.00038328,5]
[394438512,1763573439095,-500.0,0.00038328,5]
[394438514,1763573439105,-150.0,0.00038328,5]
[394438517,1763573439124,-500.0,0.00038328,5]
[394438519,1763573439133,-150.0,0.0003833,15]
[394438521,1763573439146,-500.0,0.0003833,15]
[394438523,1763573439155,-150.0,0.0003833,15]
[394438525,1763573439165,-550.0,0.0003833,15]
[394438527,1763573439174,-408.30079919,0.0003833,2]
[394438529,1763573439184,-500.0,0.0003833,15]
[394438531,1763573439194,-500.0,0.0003833,2]
[394438533,1763573439204,-500.0,0.0003833,120]
[394438535,1763573439213,-272.0,0.00038355,5]
[394438537,1763573439225,-500.0,0.00038355,5]
[394438539,1763573439234,-150.0,0.00038357,15]
[394438542,1763573439244,-500.0,0.00038357,15]
[394438543,1763573439253,-150.0,0.00038357,15]
[394438546,1763573439268,-500.0,0.00038357,15]
[394438548,1763573439277,-500.0,0.00038357,120]
[394438550,1763573439287,-500.0,0.00038383,5]
[394438552,1763573439296,-154.37383505,0.00038385,15]
[394438554,1763573439306,-500.0,0.00038385,15]
[394438556,1763573439315,-150.0,0.00038385,15]
[394438558,1763573439326,-418.0,0.00038385,15]
[394438560,1763573439337,-610.0,0.00038385,120]
[394438562,1763573439346,-500.0,0.0003841,5]
[394438564,1763573439355,-230.94387888,0.00038412,15]
[394438586,1763573439550,-250.0,0.00038412,15]
[394438589,1763573439562,-500.0,0.00038437,5]
[394438591,1763573439572,-500.0,0.00038465,5]
[394438593,1763573439581,-650.74094135,0.0003848,2]
[394438595,1763573439590,-248.0,0.00038492,5]
[394438597,1763573439600,-504.44408651,0.00038521,5]
[394438599,1763573439609,-1000.0,0.00038521,5]
[394438601,1763573439618,-506.29642956,0.00038521,2]
[394438603,1763573439628,-10673.76186978,0.00038522,2]
[394438605,1763573439637,-984.6478549,0.00038602,2]
[394438607,1763573439647,-12601.729568,0.00038612,4]
[394438610,1763573439656,-552.13627347,0.00038632,15]
[394438612,1763573439665,-500.0,0.00038717,2]
[394438614,1763573439675,-152.0,0.00038788,4]
[394438616,1763573439685,-650.74094135,0.00038884,2]
[394438618,1763573439694,-193.6366,0.00038888,30]
[394438620,1763573439703,-984.6478549,0.00038931,2]
[394438622,1763573439713,-10673.76186978,0.00038969,2]
[394438624,1763573439723,-2673.11395617,0.00039,2]
[394438626,1763573439733,-44416.90733641,0.00039,2]
[394438628,1763573439742,-552.13627347,0.00039065,15]
[394438630,1763573439751,-1500.0,0.00039068,5]
[394438632,1763573439760,-984.6478549,0.0003926,2]
[394438634,1763573439769,-650.74094135,0.00039288,2]
[394438636,1763573439778,-812.0,0.00039391,120]
[394438638,1763573439788,-10673.76186978,0.00039415,2]
[394438641,1763573439797,-426.33734981,0.00039451,7]
[394438643,1763573439806,-12601.729568,0.00039477,4]
[394438645,1763573439816,-552.13627347,0.00039497,15]
[394438647,1763573439825,-464.18970032,0.00039555,6]
[394438649,1763573439834,-984.6478549,0.00039588,2]
[394438651,1763573439843,-2000.0,0.00039616,5]
[394438653,1763573439852,-650.74094135,0.00039691,2]
[394438655,1763573439861,-199.49798449,0.00039726,5]
[394438657,1763573439871,-477.0,0.00039732,120]
[394438659,1763573439880,-812.0,0.00039828,2]
[394438661,1763573439889,-10673.76186978,0.00039861,2]
[394438663,1763573439898,-984.6478549,0.00039917,15]
[394438665,1763573439907,-552.13627347,0.0003993,15]
[394438667,1763573439916,-12601.729568,0.00039934,4]
[394438669,1763573439926,-12601.729568,0.00039944,4]
[394438671,1763573439935,-33332.5957,0.00039954,2]
[394438673,1763573439945,-1000.0,0.00039954,2]
[394438675,1763573439954,-500.0,0.00039973,5]
[394438677,1763573439964,-161.55812693,0.00039973,2]
[394438679,1763573439974,-500.0,0.00039973,5]
[394438681,1763573439983,-506.76105473,0.00039973,5]
[394438683,1763573439992,-566.88496045,0.00039973,5]
[394438685,1763573440001,-500.0,0.00039973,5]
[394438687,1763573440011,-462.94013652,0.00039973,5]
[394438689,1763573440021,-553.87687649,0.00039973,5]
[394438691,1763573440030,-500.0,0.00039973,5]
[394438693,1763573440039,-500.0,0.00039973,5]
[394438695,1763573440049,-500.0,0.00039973,5]
[394438697,1763573440058,-5202.23227391,0.0003998,2]
[394438699,1763573440067,-12601.729568,0.00039989,4]
[394438701,1763573440077,-11304.25456163,0.00039999,2]
[394438703,1763573440086,-8007.24682841,0.00039999,2]
[394438705,1763573440095,-4856.86736663,0.0004,2]
[394438707,1763573440104,-416.82379315,0.0004,7]
[394438709,1763573440113,-186.46505556,0.0004,30]
[394438711,1763573440122,-1007.92064577,0.0004,120]
[394438713,1763573440132,-7300.79785155,0.0004,120]
[394438715,1763573440142,-376.71427535,0.0004,120]
[394438717,1763573440152,-500.0,0.0004,7]
[394438719,1763573440161,-160.13874559,0.00040082,30]
[394438721,1763573440171,-180.97307079,0.00040082,30]
[394438723,1763573440180,-650.74094135,0.00040095,28]
[394438725,1763573440189,-900.0,0.0004016,2]
[394438727,1763573440198,-1509.40461438,0.00040164,5]
[394438729,1763573440207,-300.0,0.00040186,2]
[394438731,1763573440216,-477.0,0.0004019,2]
[394438733,1763573440229,-180.97307079,0.00040219,30]
[394438735,1763573440238,-984.6478549,0.00040246,15]
[394438737,1763573440247,-160.13874559,0.00040274,30]
[394438739,1763573440258,-300.0,0.00040277,2]
[394438741,1763573440269,-300.0,0.00040287,2]
[394438743,1763573440280,-10673.76186978,0.00040308,15]
[394438745,1763573440291,-12601.729568,0.00040314,4]
[394438747,1763573440300,-300.0,0.00040316,2]
[394438749,1763573440310,-25203.459136,0.00040323,4]
[394438751,1763573440319,-38837.34,0.00040333,2]
[394438753,1763573440328,-300.0,0.00040339,2]
[394438755,1763573440338,-300.0,0.00040342,2]
[394438757,1763573440347,-552.13627347,0.00040362,15]
[394438759,1763573440356,-300.0,0.00040368,2]
[394438761,1763573440366,-500.0,0.00040373,5]
[394438763,1763573440375,-150.0,0.00040373,5]
[394438765,1763573440385,-300.0,0.00040381,2]
[394438767,1763573440394,-225.0,0.00040381,2]
[394438769,1763573440403,-180.97307079,0.00040384,30]
[394438770,1763573440413,-12601.729568,0.00040389,4]
[394438771,1763573440422,-300.0,0.00040396,2]
[394438772,1763573440431,-200.0,0.00040399,2]
[394438773,1763573440440,-200.0,0.00040399,2]
[394438774,1763573440449,-200.0,0.00040399,2]
[394438775,1763573440459,-200.0,0.00040399,2]
[394438776,1763573440468,-200.0,0.00040399,2]
[394438778,1763573440479,-200.0,0.00040399,2]
[394438779,1763573440488,-200.0,0.00040399,2]
[394438781,1763573440497,-200.0,0.00040399,2]
[394438783,1763573440506,-200.0,0.00040399,2]
[394438786,1763573440516,-200.0,0.00040399,2]
[394438788,1763573440526,-200.0,0.00040399,2]
[394438790,1763573440537,-200.0,0.00040399,2]
[394438792,1763573440546,-200.0,0.00040399,2]
[394438794,1763573440555,-200.0,0.00040399,2]
[394438796,1763573440564,-200.0,0.00040399,2]
[394438798,1763573440573,-200.0,0.00040399,2]
[394438800,1763573440582,-200.0,0.00040399,2]
[394438802,1763573440591,-200.0,0.00040399,2]
[394438804,1763573440601,-200.0,0.00040399,2]
[394438805,1763573440610,-200.0,0.00040399,2]
[394438807,1763573440618,-200.0,0.00040399,2]
[394438809,1763573440627,-200.0,0.00040399,2]
[394438811,1763573440636,-200.0,0.00040399,2]
[394438813,1763573440645,-200.0,0.00040399,2]
[394438815,1763573440654,-200.0,0.00040399,2]
[394438817,1763573440663,-200.0,0.00040399,2]
[394438819,1763573440672,-200.0,0.00040399,2]
[394438821,1763573440682,-200.0,0.00040399,2]
[394438823,1763573440691,-200.0,0.00040399,2]
[394438825,1763573440701,-200.0,0.00040399,2]
[394438827,1763573440710,-200.0,0.00040399,2]
[394438829,1763573440719,-200.0,0.00040399,2]
[394438831,1763573440730,-200.0,0.00040399,2]
[394438833,1763573440739,-200.0,0.00040399,2]
[394438835,1763573440748,-200.0,0.00040399,2]
[394438837,1763573440759,-313.0,0.00040399,2]
[394438839,1763573440768,-620.56,0.00040399,30]
[394438842,1763573440778,-900.0,0.0004046,2]
[394438844,1763573440788,-160.13874559,0.00040466,30]
[394438846,1763573440798,-300.0,0.0004047,2]
[394438847,1763573440807,-300.0,0.00040477,2]
[394438849,1763573440816,-195.11,0.00040498,14]
[394438851,1763573440825,-650.74094135,0.00040499,28]
[394438853,1763573440835,-1091.0,0.00040514,2]
[394438856,1763573440845,-300.0,0.00040517,2]
[394438858,1763573440854,-1000.0,0.00040521,5]
[394438860,1763573440863,-1000.0,0.00040521,5]
[394438861,1763573440872,-300.0,0.00040527,2]
[394438864,1763573440882,-180.97307079,0.00040548,30]
[394438866,1763573440891,-984.6478549,0.00040574,15]
[394438868,1763573440901,-160.13874559,0.00040658,30]
[394438870,1763573440910,-620.56,0.00040673,30]
[394438872,1763573440919,-180.97307079,0.00040712,30]
[394438874,1763573440928,-12601.729568,0.00040722,4]
[394438876,1763573440937,-300.0,0.00040732,2]
[394438878,1763573440947,-300.0,0.00040739,2]
[394438880,1763573440956,-392.0,0.0004075,2]
[394438882,1763573440966,-10673.76186978,0.00040754,15]
[394438884,1763573440977,-300.0,0.00040766,2]
[394438886,1763573440987,-477.0,0.00040787,7]
[394438888,1763573440996,-552.13627347,0.00040795,15]
[394438890,1763573441006,-1099.37,0.000408,14]
[394438892,1763573441015,-300.0,0.00040816,2]
[394438894,1763573441024,-160.13874559,0.00040849,30]
[394438896,1763573441033,-900.0,0.00040859,2]
[394438898,1763573441043,-180.97307079,0.00040877,30]
[394438900,1763573441052,-1562.27700895,0.00040895,2]
[394438901,1763573441062,-1100.0,0.000409,14]
[394438904,1763573441071,-618.84873208,0.00040903,2]